Cogmind - Beta 17 @@@ ROGUE MODE // 2026.06.24 @ 11:57:12 Player: Lolterzard Result: Destroyed by RX-4GC(R) with Subdweller Laser Performance ------------- Evolutions (0) 0 Regions Visited (3) 600 Robots Destroyed (31) 155 Value Destroyed (698) 698 Prototype IDs (0) 0 Alien Tech Used (0) 0 Bonus (0) 0 TOTAL SCORE: 1453 Bonus ------- None Cogmind --------- Core Integrity 0/250 Matter 270/300 Energy 55/100 System Corruption 0% Temperature Cool (6) Movement Rolling (90) Location -10/Subcaves Parts ------- > --- POWER (1) -------- (None) > --- PROPULSION (2) --- Wheel Compact Wheel > --- UTILITY (2) ------ Large Storage Unit Tractor Beam > --- WEAPON (2) ------- (None) > --- INVENTORY (15) --- Ion Engine Light Treads Light Treads Heat Sink Small Storage Unit Weight Redist. System Experimental Sensor Array Small Laser Light Assault Rifle Heavy Assault Rifle Battle Rifle Peak State ------------ > --- POWER ------------ Ion Engine > --- PROPULSION ------- Light Treads Light Treads > --- UTILITY ---------- Large Storage Unit Seismic Detector > --- WEAPON ----------- Light Assault Rifle Heavy Assault Rifle > --- INVENTORY -------- Ion Engine Light Treads Light Treads Wheel Compact Wheel Heat Sink Small Storage Unit Weight Redist. System Experimental Sensor Array Tractor Beam Small Laser Light Assault Rifle Rocket Launcher [Rating: 10] Favorites ----------- Power Ion Engine Engine Ion Engine Propulsion Light Treads Treads Light Treads Wheel Wheel Utility Large Storage Unit Device Seismic Detector Storage Large Storage Unit Weapon Light Assault Rifle Ballistic Gun Light Assault Rifle Launcher Rocket Launcher Build | -11 -10 -10 -10 ------- Run | Yrd Mat Min Sub Slots Evolved . | . . . . Power . | . . . . Propulsion . | . . . . Utility . | . . . . Weapon . | . . . . Parts Attached 20 | 7 5 2 6 Power 3 | 1 1 1 . Engine 3 | 1 1 1 . Core . | . . . . Reactor . | . . . . Propulsion 6 | 2 2 . 2 Treads 4 | 2 2 . . Leg . | . . . . Wheel 2 | . . . 2 Hover . | . . . . Flight . | . . . . Utility 4 | 2 1 . 1 Device 2 | 1 . . 1 Storage 2 | 1 1 . . Processor . | . . . . Hackware . | . . . . Protection . | . . . . Artifact . | . . . . Weapon 7 | 2 1 1 3 Energy Gun . | . . . . Energy Cannon . | . . . . Ballistic Gun 6 | 2 1 1 2 Ballistic Cannon . | . . . . Launcher 1 | . . . 1 Special Weapon . | . . . . Impact Weapon . | . . . . Slashing Weapon . | . . . . Piercing Weapon . | . . . . Special Melee Weapon . | . . . . Unidentified Prototypes . | . . . . Parts Lost 11 | . 2 2 7 Power 3 | . 1 1 1 Propulsion 2 | . . . 2 Utility 1 | . . . 1 Weapon 5 | . 1 1 3 Highest Loss Streak 3 | . 1 2 3 To Critical Strikes . | . . . . Average Backups 11 | 3 6 11 13 Power 1 | . 1 1 1 Propulsion 3 | 1 2 4 3 Utility 4 | . 1 4 4 Weapon 2 | . 1 1 3 Tool/Special . | . . . . Unused Backups 7 | . 1 . 6 Power 2 | . 1 . 1 Propulsion . | . . . . Utility 3 | . . . 3 Weapon 2 | . . . 2 Tool/Special . | . . . . Average Slot Usage (%) 77 | . 99 98 68 Engine 6 | . 14 12 3 Treads 21 | . 28 28 17 Device 6 | . 14 14 3 Storage 14 | . 14 14 14 Ballistic Gun 19 | . 27 27 16 Launcher 7 | . . . 11 Peak Build Rating 10 | 7 8 9 10 Average Rating 8 | 5 7 8 8 On Entrance 6 | . 7 8 9 Avg Prop Armor Cover (%) 31 | 31 . . . Naked Turns . | . . . . Heaviest Build 31 | 14 30 29 31 Greatest Support 40 | 40 40 40 40 Greatest Overweight (x) 4 | 4 1 . 1 Average Overweight (x) . | . . . . Largest Inventory Capacity 15 | 8 15 15 15 Average Capacity 14 | 7 12 15 15 Most Carried 14 | 4 11 13 14 Average Carried 11 | 3 6 11 13 Final Capacity 15 | 8 15 15 15 Final Carried 12 | 4 11 12 11 Class Distribution -------------------- 100% | Mutant Dominant Class ---------------- Mutant | -10/Materials Mutant | -10/Mines Mutant | -10/Subcaves Resources | -11 -10 -10 -10 ----------- Run | Yrd Mat Min Sub Matter Collected 1030 | 278 231 119 402 Remotely . | . . . . Salvage Created 906 | 103 488 119 196 Parts 61 | 7 31 9 14 Haulers Intercepted 2 | . 2 . . Recyclers Shooed . | . . . . Parts Field Recycled . | . . . . Retrieved Matter . | . . . . Parts Self-Destructed 14 | . . . 14 Prevented . | . . . . Parts Restored . | . . . . Kills | -11 -10 -10 -10 ------- Run | Yrd Mat Min Sub Combat Hostiles Destroyed 25 | . 13 5 7 Guns 19 | . 13 5 1 AOE 6 | . . . 6 Classes Destroyed 9 | 2 5 . 2 Worker 1 | . 1 . . Tunneler 1 | 1 . . . Hauler 2 | . 2 . . Recycler 1 | 1 . . . Watcher 1 | . 1 . . Swarmer 10 | . 6 3 1 Grunt 9 | . 7 2 . Sentry 1 | . . . 1 Subdweller 5 | . . . 5 Best Kill Streak 4 | 2 4 3 2 Combat Bots Only 3 | . 3 3 2 Max Kills in Single Turn 2 | 1 2 1 2 Gunslinging 1 | . 1 . . Exploded 2 | . . . 2 Melee . | . . . . Uniques/NPCs Destroyed . | . . . . Combat | -11 -10 -10 -10 -------- Run | Yrd Mat Min Sub Hostile Shots Fired 151 | . 92 30 29 Missed 41 | . 23 6 12 Hits 110 | . 69 24 17 Projectile 110 | . 69 24 17 AOE 1 | . . . 1 Critical Strikes 3 | . 1 . 2 Damage Taken 1588 | . 657 279 652 Core 269 | . 97 25 147 Absorbed by Shields . | . . . . Core Remaining (%) 100 | 100 . . . Volleys Fired 120 | 2 73 22 23 Largest 2 | 2 2 2 2 Hottest 58 | 40 40 40 58 Shots Fired 228 | 4 145 43 36 Gun 208 | 4 145 43 16 Cannon . | . . . . Launcher 20 | . . . 20 Special . | . . . . Kinetic 208 | 4 145 43 16 Thermal . | . . . . Explosive 20 | . . . 20 Electromagnetic . | . . . . Robot Hit Streak 11 | 4 6 11 7 Robot Miss Streak 6 | . 6 6 2 Penetration Max . | . . . . Secondary Targets 2 | . 1 1 . Max Gunslinging Chain 1 | . 1 1 . Shots Hit Robots 119 | 4 79 24 12 Core Hits 58 | 4 30 13 11 Critical Kills . | . . . . Critical Parts Destroyed 1 | . 1 . . Critical Strikes 1 | . 1 . . Destroy 1 | . 1 . . Melee Attacks . | . . . . Impact . | . . . . Slashing . | . . . . Piercing . | . . . . Sneak Attacks . | . . . . Combat Hostiles . | . . . . Follow-up Attacks . | . . . . Damage Inflicted 1633 | 40 892 218 483 Guns 1222 | 40 892 218 72 Cannons . | . . . . Explosions 411 | . . . 411 Melee . | . . . . Ramming . | . . . . Kinetic 1222 | 40 892 218 72 Thermal . | . . . . Explosive 411 | . . . 411 Electromagnetic . | . . . . Impact . | . . . . Slashing . | . . . . Piercing . | . . . . Highest Corruption . | . . . . Average Corruption . | . . . . Corruption Purged . | . . . . Corruption Blocked . | . . . . Overload Shots . | . . . . Overflow Damage 37 | . . . 37 Projectiles . | . . . . Explosions 37 | . . . 37 Melee . | . . . . Knockbacks . | . . . . Impact . | . . . . Kinetic . | . . . . Secondary . | . . . . Self-Inflicted Damage 84 | . . . 84 Shots 5 | . . . 5 Rammed . | . . . . Targets Rammed . | . . . . Kicked . | . . . . Crushed . | . . . . Highest Temperature 279 | . 6 12 279 Average Temperature 39 | . 3 5 156 Received Heat Transfer 649 | . 183 111 355 Siege Activations . | . . . . Martial Activations . | . . . . Shielding Activations . | . . . . Robots Disrupted . | . . . . Combat Hostiles . | . . . . Robots Corrupted . | . . . . Combat Hostiles . | . . . . Parts Fried . | . . . . Impact Corruptions . | . . . . Robots Melted . | . . . . Combat Hostiles . | . . . . Parts Melted . | . . . . Heat Transferred . | . . . . Parts Sabotaged . | . . . . Parts Stolen . | . . . . Parts Stripped . | . . . . Power Chain Reactions . | . . . . Alert | -11 -10 -10 -10 ------- Run | Yrd Mat Min Sub Maximum Alert Level . | . . . . Low Security (%) 100 | 100 100 100 . Level 1 . | . . . . Level 2 . | . . . . Level 3 . | . . . . Level 4 . | . . . . Level 5 . | . . . . High Security . | . . . . Max Security . | . . . . Peak Influence 178 | 5 178 100 . Initial 60 | . . 60 . Average 46 | 1 75 22 . Influence Increases 604 | 10 434 120 40 Destroy 0b10 Robot/C 400 | . 260 100 40 Destroy 0b10 Robot/NC 30 | 10 20 . . Destroy Leader 76 | . 56 20 . Successful Hack 7 | . 7 . . Destroy Structure 1 | . 1 . . Partial Spotted 15 | . 15 . . Lose Combat Pursuer 75 | . 75 . . Influence Decreases 604 | 10 280 274 40 Entered New Map 94 | . . 94 . Time Decay 440 | 10 230 160 40 Lost Part 40 | . 20 20 . Purge Threat 30 | . 30 . . Squads Dispatched 4 | . 4 . . Investigation 2 | . 2 . . Extermination . | . . . . Reinforcement 2 | . 2 . . Assault . | . . . . Garrison . | . . . . Intercept . | . . . . Searches Triggered . | . . . . Construction Impeded . | . . . . Haulers Reinforced . | . . . . Active Scanning Responses . | . . . . Cargo Convoy Interrupts . | . . . . Stealth | -11 -10 -10 -10 --------- Run | Yrd Mat Min Sub Distress Signals 2 | . 2 . . Communications Jammed . | . . . . Distress Signals . | . . . . Times Spotted 40 | . 26 5 9 Peak Tracking Total 5 | . 5 3 2 Tactical Retreats 4 | . 4 . . Traps | -11 -10 -10 -10 ------- Run | Yrd Mat Min Sub Traps Triggered 5 | . 1 . 4 Indirectly . | . . . . Trap Hack Attempts . | . . . . Triggered . | . . . . Disarmed . | . . . . Reprogrammed . | . . . . Reused . | . . . . Traps Extracted . | . . . . Installed . | . . . . Triggered . | . . . . Machines | -11 -10 -10 -10 ---------- Run | Yrd Mat Min Sub Machines Disabled . | . . . . Max in Single Turn . | . . . . Machines Repaired . | . . . . Machines Dismantled . | . . . . Machines Sabotaged . | . . . . Overloaded Fab Kills . | . . . . Hacking | -11 -10 -10 -10 --------- Run | Yrd Mat Min Sub Machines Accessed 4 | . 4 . . Terminals 4 | . 4 . . Fabricators . | . . . . Repair Stations . | . . . . Recycling Units . | . . . . Scanalyzers . | . . . . Garrison Access . | . . . . Total Hacks 10 | . 10 . . Successful 4 | . 4 . . Failed 6 | . 6 . . Catastrophic 1 | . 1 . . Database Lockouts . | . . . . Manual . | . . . . Terminals 10 | . 10 . . Fabricators . | . . . . Repair Stations . | . . . . Recycling Units . | . . . . Scanalyzers . | . . . . Garrison Access . | . . . . Terminal Hacks 4 | . 4 . . Branch Access Points 1 | . 1 . . Unreport Threat 1 | . 1 . . Locate Traps 1 | . 1 . . Patrol Status 1 | . 1 . . Fabricator Hacks . | . . . . Repair Station Hacks . | . . . . Recycling Unit Hacks . | . . . . Scanalyzer . | . . . . Garrison Access Hacks . | . . . . Unauthorized Hacks . | . . . . Terminals . | . . . . Fabricators . | . . . . Repair Stations . | . . . . Recycling Units . | . . . . Scanalyzers . | . . . . Garrison Access . | . . . . Data Cores Recovered . | . . . . Used . | . . . . Hacking Detections 3 | . 3 . . Full Trace Events 3 | . 3 . . Feedback Events . | . . . . Feedback Blocked . | . . . . Robot Schematics Acquired . | . . . . Robots Built . | . . . . Authchips . | . . . . Time . | . . . . Total Robot Build Rating . | . . . . Part Schematics Acquired . | . . . . Parts Built . | . . . . Authchips . | . . . . Time . | . . . . Total Part Build Rating . | . . . . Part Studies Acquired . | . . . . Parts Repaired . | . . . . Time . | . . . . Parts Recycled . | . . . . Recycled Matter . | . . . . Retrieved Matter . | . . . . Retrieved Components . | . . . . Parts Scanalyzed . | . . . . Part Schematics Acquired . | . . . . Parts Damaged . | . . . . Bothacking | -11 -10 -10 -10 ------------ Run | Yrd Mat Min Sub Used RIF Installer . | . . . . Robots Hacked . | . . . . Non-combat . | . . . . Combat . | . . . . Robot Hacks Applied . | . . . . Relay Couplers Released . | . . . . Fabnet Peak Effective % . | . . . . Robots Rewired . | . . . . Allies Hacked . | . . . . Hacks Repelled . | . . . . Allies | -11 -10 -10 -10 -------- Run | Yrd Mat Min Sub Total Allies . | . . . . Largest Group . | . . . . Highest-Rated Group . | . . . . Highest-Rated Ally . | . . . . Total Orders . | . . . . Ally Attacks . | . . . . Total Damage . | . . . . Kills . | . . . . Allies Corrupted . | . . . . Allies Melted . | . . . . Intel | -11 -10 -10 -10 ------- Run | Yrd Mat Min Sub Active Infowar (turns) 1866 | . 396 685 785 Seismic 1866 | . 396 685 785 Robot Analysis Total . | . . . . Derelict Logs Recovered . | . . . . Drone Launches . | . . . . Drone Recoveries . | . . . . Exploration | -11 -10 -10 -10 ------------- Run | Yrd Mat Min Sub Turns Passed 4564 | 87 732 685 3060 Spaces Moved 2030 | 58 294 269 1409 Core 28 | 28 . . . Treads 2002 | 30 294 269 1409 Legs . | . . . . Wheels . | . . . . Hover . | . . . . Flight . | . . . . Fastest Speed 50 | 50 160 160 160 Average Speed 194 | 117 160 160 212 Slowest Speed 250 | 250 240 160 240 Overloaded Moves . | . . . . Propulsion Burnouts . | . . . . Robots Hopped . | . . . . Potential Cave-ins . | . . . . Cave-ins Triggered . | . . . . Exploration Rate (%) 43 | 4 60 58 51 Regions Visited 3 Branch Regions 2 Pre-discovered Areas . | . . . . Known Exits Taken 1 | . 1 . . Unknown Exits Taken 2 | 1 . 1 . Scrap Searched . | . . . . Spaces Dug 8 | . . . 8 Terrain Destroyed 133 | . . . 133 Melee . | . . . . Projectile . | . . . . AOE 133 | . . . 133 Terrain Rammed . | . . . . Walls Destroyed . | . . . . Machines Disabled . | . . . . Actions | -11 -10 -10 -10 --------- Run | Yrd Mat Min Sub Total 2418 | 70 417 486 1445 Wait 232 | . 36 191 5 Move 2027 | 57 293 268 1409 Hop . | . . . . Pick Up 14 | 4 6 2 2 Fast Attach 7 | 7 . . . Attach 9 | . 3 2 4 Detach 1 | . 1 . . Swap 7 | . 4 1 2 Drop 1 | . 1 . . Fire 120 | 2 73 22 23 Melee . | . . . . Ram . | . . . . Kick . | . . . . Crush . | . . . . Escape Stasis . | . . . . Rewire . | . . . . Trap . | . . . . Miscellaneous . | . . . . Route ------- -11/Scrapyard -10/Materials (discovered 4 exits: [*Mat x2] / *Min x2) -10/Mines -10/Subcaves History --------- Turn | Location | Event 5 | -11/Scrapyard | Discovered new exit (range 14) 88 | -11/Scrapyard | Entered Materials 274 | -10/Materials | Discovered new exit (range 13) 317 | -10/Materials | Build established: Mutant 382 | -10/Materials | Discovered new exit (range 13) 395 | -10/Materials | Identified exit to Mines 561 | -10/Materials | Discovered new exit (range 5) 820 | -10/Materials | Entered Mines 981 | -10/Mines | Received a Rocket Launcher from a helpful Derelict 1102 | -10/Mines | Found a damaged Exp. Sensor Array with a note attached 1106 | -10/Mines | Found Prototype Device 1492 | -10/Mines | Discovered new exit (range 5) 1505 | -10/Mines | Entered Subcaves 1506 | -10/Subcaves | Approached by a straggling Scientist 1591 | -10/Subcaves | A swath of the cavern ceiling suddenly collapsed 1718 | -10/Subcaves | A swath of the cavern ceiling suddenly collapsed 1798 | -10/Subcaves | Shifting Twisted Machinery released Sub. Optics 2051 | -10/Subcaves | Shifting Twisted Machinery released Battle Rifle 2316 | -10/Subcaves | Core integrity fell below 50% 2346 | -10/Subcaves | Lost 3 parts (1p1n1u) 2812 | -10/Subcaves | Ambushed by Subdweller buried in earth 3055 | -10/Subcaves | Core integrity fell below 20% 3162 | -10/Subcaves | Shifting Twisted Machinery released Battle Rifle 4541 | -10/Subcaves | Ambushed by Subdweller buried in earth 4565 | -10/Subcaves | Destroyed by RX-4GC(R) with Subdweller Laser Last Messages --------------- 03056_ 61-OLE(R) destroyed. 03062_ Subatomizers dissect the Disposable Heat Sink, destroying it. 03073_ Acquired 15 matter. 03085_ Acquired 30 matter. Battle Rifle falls loose from the Twisted Machinery. 03181_ Acquired Battle Rifle. 03199_ Subatomizers dissect the Mak. Axe. 03233_ Acquired 14 matter. 03250_ Subatomizers dissect the Mak. Axe. 04498_ Acquired 17 matter. 04501_ Acquired 12 matter. 04539_ Acquired 2 matter. 04540_ GJ-QW4(R): "WEHOME!" 04541_ Critical hit (Meltdown: +280). 04541_ Battle Rifle destroyed. 04541_ Destroyed Battle Rifle. 04541_ Rocket Launcher destroyed. 04542_ RX-4GC(R): "FREEEEDUMB!" 04552_ The unstable cave ceiling collapses. 04561_ Lgt. Treads destroyed. Map ----- +----------------------------------------------------+ | ?????????????????????????????????????????????????? | | ?????????????????????????????????????????????????? | | ?????????????????????????????????????????????????? | | ?????????????????????????????????????????????????? | | ?????????????????????????????????????????????????? | | ?????????????????????????????????????????????????? | | ?????????????????????????????????????????????????? | | ??????????????? ????????????????????????????????? | | ????????????# ????????????????????????????????? | | ??????????### ##??????????????????????????????? | | ?###??????# ##???? ??????????????????????? | | ?# #?????? #???? ?????????????????????? | | ?# ##??? ##??? #?????????????????????? | | ?# ##??# ##?? #?????????????????????? | | ## ##??# #?? ??????????????????????? | | # "#???# #?? ??????????????????????? | | " #???# ### ??????????????????????? | | " #????? # #??????????????????????? | | " ##?#### " ## #??????????????????????? | | ### # "" ## #??????????????????????? | | ### ## """# ## ####???????????????????? | | ??## ## ## "#""# # # #???????????????????? | | ???## # ??#""" ## #???????????????????? | | ???# ## ?### ##### #????????????????????? | | ???## ## ###" #?## #?????????????????????? | | ?### "#"""""" ### @#??????????????????????? | | ## # ##""""" R #??????????????????????? | | """ ## #???????????????????? | | % ### ##### #??????????????????? | | # #####???# ##??????????????????? | | ## ## #?????? ##???????????????????? | | ?# "#?????? ##????????????????????? | | ?#### #???? ##?????????????????????? | | ????## ###????#####??????????????????????? | | ?????##### ##????????????????????????????????? | | ?????????# ##?????????????????????????????????? | | ?????????# #??????????????????????????????????? | | ?????????# ###??????????????????????????????????? | | ????????## #???????????????????????????????????? | | ????????# ##???????????????????????????????????? | | ??###???# #????????????????????????????????????? | | ### ##### ##???????????????????????????????????? | | # #???????????????????????????????????? | | # ##??????????????????????????????##???? | | # ##?????????????????????????????## #??? | | ## ### #?????????????????????????????# ##?? | | ?# #??# #?????????????????????????????# ##? | | ?# ##?# #?????##########??????????????# ## | | ?### ### ##????# #?????????###### # | | ???# ###??# ##### ##???????## # | +----------------------------------------------------+ Best States ------------- Heat Dissipation 25 Energy Generation 10 Energy Capacity 250 Matter Stores 300 Matter Capacity 300 Sight Range 16 Terrain Scan Density 10 Evasion (%) 50 Recoil Reduction 2 Item Schematics ----------------- None Robot Schematics ------------------ None Fabricated ------------ Nothing Repaired ---------- Nothing Studied --------- None Alien Tech Used ----------------- None Achievements -------------- None Challenges ------------ None Game ------ Seed ChargeTeleporterBank Manual? 0 Play Time 00:12:46 Cumulative 52.5 hours Start 2026.06.24 @ 11:45:23 End 2026.06.24 @ 11:57:12 Sessions 1 Manual Loads 0 Difficulty Rogue Special Mode None Game No. 114 Rogue 114 Adventurer 0 Explorer 0 Win Type - Total 0 Types 0/0/0/0/0/0/0/0/0/0 Lore% 28 Gallery% 25 Achievement% 23 Wizard Run 0 Options --------- Layout 0 ASCII 0 Keyboard 0 Movement Mouse Keybinds 0 Fullscreen 2 Font 24/Smallcaps Map View 76x50 Zoom Use 0% Tactical HUD 1 Map Filters NONE Filters NONE Steam 1 RUN: fdb45f81-3534-4476-9448-364fc6a39a3e